bitfinex-derivatives/quotes_BTCF0:USTF0_20250716
["timestamp","ask_amount","ask_price","bid_price","bid_amount"]
[1752636344320,1.08560237,117520.0,117510.0,0.23665369]
[1752636344826,0.1725906,117510.0,117500.0,1.43822439]
[1752636345017,0.1773606,117510.0,117500.0,1.43822439]
[1752636345323,0.1773606,117510.0,117500.0,0.3608]
[1752636345324,0.41401429,117510.0,117500.0,0.3608]
[1752636345524,0.41401429,117510.0,117500.0,0.531005]
[1752636345822,0.41401429,117510.0,117500.0,0.76765869]
[1752636346615,0.1773606,117510.0,117500.0,0.76765869]
[1752636346814,0.41401429,117510.0,117500.0,0.76765869]
[1752636347424,0.23865328,117510.0,117500.0,0.76765869]
[1752636347722,0.47530697,117510.0,117500.0,0.76765869]
[1752636348023,0.47730697,117510.0,117500.0,0.76765869]
[1752636348620,0.48602754,117510.0,117500.0,0.76765869]
[1752636349524,0.50597754,117510.0,117500.0,0.76765869]
[1752636350626,0.44468486,117510.0,117500.0,0.76765869]
[1752636352122,0.50579369,117510.0,117500.0,0.76765869]
[1752636358226,0.172605,117500.0,117490.0,1.43809569]
[1752636358424,0.41402869,117500.0,117490.0,1.39554149]
[1752636361631,0.41402869,117500.0,117490.0,1.18277369]
[1752636362231,0.41402869,117500.0,117490.0,0.94612]
[1752636362431,0.41402869,117500.0,117490.0,0.58532]
[1752636362628,0.1726895,117490.0,117480.0,1.41402746]
[1752636362931,0.1774595,117490.0,117480.0,1.65068115]
[1752636363834,0.41411319,117490.0,117480.0,1.41502746]
[1752636364132,0.1774595,117490.0,117480.0,1.37246906]
[1752636364329,0.47522202,117490.0,117480.0,1.1172218]
[1752636364529,0.47522202,117490.0,117480.0,1.35387549]
[1752636365542,0.47522202,117490.0,117480.0,1.18365369]
[1752636365928,0.47522202,117490.0,117480.0,0.82285369]
[1752636366134,0.83602202,117490.0,117480.0,0.001]
[1752636366636,1.42118202,117490.0,117480.0,0.001]
[1752636367736,1.36007319,117490.0,117480.0,0.40788759]
[1752636367936,0.99927319,117490.0,117480.0,0.76868759]
[1752636368138,1.06042944,117490.0,117480.0,0.76868759]
[1752636368636,0.47526944,117490.0,117480.0,0.40788759]
[1752636369538,0.41411319,117490.0,117480.0,0.40788759]
[1752636369836,0.49068445,117490.0,117480.0,0.40788759]
[1752636371037,0.49068445,117490.0,117480.0,0.001]
[1752636371241,0.49068445,117490.0,117480.0,0.23765369]
[1752636372436,0.49068445,117490.0,117480.0,0.001]
[1752636372633,0.48344445,117490.0,117480.0,0.001]
[1752636372833,0.84424445,117490.0,117480.0,0.001]
[1752636374340,0.1702339,117480.0,117470.0,1.43793969]
[1752636374637,0.40688759,117480.0,117470.0,1.43793969]
[1752636374838,0.48345885,117480.0,117470.0,1.43793969]
[1752636375536,0.40688759,117480.0,117470.0,1.43793969]
[1752636376339,0.40888759,117480.0,117470.0,1.43793969]
[1752636377239,0.42884759,117480.0,117470.0,1.43793969]
[1752636379933,0.49004421,117480.0,117470.0,1.43793969]
[1752636384345,0.49004421,117480.0,117470.0,0.85281969]
[1752636384546,0.49004421,117480.0,117470.0,1.43769969]
[1752636390453,0.25339052,117480.0,117470.0,1.43769969]
[1752636392255,0.1921939,117480.0,117470.0,1.43769969]
[1752636392650,0.1921939,117480.0,117470.0,1.201046]
[1752636392849,0.253461,117480.0,117470.0,1.43769969]
[1752636393156,0.253461,117480.0,117470.0,1.201046]
[1752636393358,0.253461,117480.0,117470.0,1.43769969]
[1752636394558,0.1921939,117480.0,117470.0,1.43769969]
[1752636395356,0.26876516,117480.0,117470.0,1.43769969]
[1752636397568,0.25348499,117480.0,117470.0,1.43769969]
[1752636399971,0.49013868,117480.0,117470.0,1.43769969]
[1752636401171,0.49013868,117480.0,117470.0,0.85281969]
[1752636401374,0.42884759,117480.0,117470.0,1.43737969]
[1752636401672,0.49016842,117480.0,117470.0,1.43737969]
[1752636403569,0.49016842,117480.0,117470.0,1.200726]
[1752636403875,0.49016842,117480.0,117470.0,1.43737969]
[1752636404768,0.49016842,117480.0,117470.0,0.2128043]
[1752636404769,0.74207254,117480.0,117470.0,0.2128043]
[1752636404970,0.74207254,117480.0,117460.0,0.4884932]
[1752636404971,0.1702485,117470.0,117460.0,0.2553771]
[1752636405276,0.7048797,117470.0,117460.0,0.2128126]
[1752636405577,0.46822601,117470.0,117460.0,0.2128126]
[1752636407379,1.05270601,117470.0,117460.0,0.2128126]
[1752636408077,1.31316568,117470.0,117460.0,0.1702631]
[1752636408276,1.7778548,117470.0,117460.0,0.1702631]
[1752636408475,1.8204201,117470.0,117460.0,0.1702631]
[1752636410181,0.1702631,117460.0,117450.0,0.2554026]
[1752636410381,0.64357048,117460.0,117450.0,0.2554026]
[1752636411180,0.40691679,117460.0,117450.0,0.49205629]
[1752636411584,0.47368726,117460.0,117450.0,0.49205629]
[1752636412087,0.47368726,117460.0,117450.0,0.49305629]
[1752636412581,0.47368726,117460.0,117450.0,0.2564026]
[1752636412787,0.71034095,117460.0,117450.0,0.1712776]
[1752636413087,1.07114095,117460.0,117450.0,0.001]
[1752636413484,1.30274478,117460.0,117450.0,0.001]
[1752636414483,1.24142096,117460.0,117450.0,0.001]
[1752636414685,0.1702776,117450.0,117440.0,0.1702908]
[1752636414884,1.35213129,117450.0,117440.0,0.1702908]
[1752636415087,1.43161868,117450.0,117440.0,0.1702908]
[1752636415993,1.43161868,117450.0,117430.0,0.1277271]
[1752636415994,0.1702921,117440.0,117430.0,0.2980218]
[1752636416386,0.1702921,117440.0,117430.0,0.6588218]
[1752636417190,0.1702921,117440.0,117430.0,0.6182456]
[1752636417390,0.1702921,117440.0,117430.0,0.2574456]
[1752636419488,0.84723318,117440.0,117430.0,0.002]
[1752636419794,0.908557,117440.0,117430.0,0.002]
[1752636420187,0.84723318,117440.0,117430.0,0.002]
[1752636420792,0.1703066,117430.0,117420.0,0.6162684]
[1752636420993,0.81581297,117430.0,117420.0,0.6162684]
[1752636423394,0.7546666,117430.0,117420.0,0.6182684]
[1752636424995,0.7546666,117430.0,117420.0,0.93440948]
[1752636426294,0.1703066,117430.0,117420.0,0.93440948]
[1752636428397,0.882351,117440.0,117430.0,0.1703066]
[1752636428596,0.298031,117440.0,117430.0,0.84724768]
[1752636429801,0.298031,117440.0,117430.0,0.84824768]
[1752636431099,0.298031,117440.0,117430.0,0.5321066]
[1752636431302,0.298031,117440.0,117430.0,0.84824768]
[1752636431501,0.300481,117440.0,117430.0,0.84824768]
[1752636431805,0.300481,117440.0,117430.0,0.5321066]
[1752636432101,0.62142208,117440.0,117430.0,1.1163866]
[1752636432602,0.62142208,117440.0,117430.0,0.7555866]
[1752636433303,0.98222208,117440.0,117430.0,0.001]
[1752636434302,1.35950953,117440.0,117430.0,0.001]
[1752636436105,1.35950953,117440.0,117400.0,1.2433383]
[1752636436106,0.1775856,117410.0,117400.0,0.5313474]
[1752636436401,0.1775856,117410.0,117400.0,0.5311474]
[1752636436808,0.49372668,117410.0,117400.0,0.5311474]
[1752636438510,0.1728001,117400.0,117390.0,1.21976125]
[1752636438705,0.1776001,117400.0,117390.0,1.21976125]
[1752636439801,0.1776001,117400.0,117390.0,1.22476125]
[1752636442017,0.1776001,117400.0,117390.0,1.54090233]
[1752636443817,0.1776001,117400.0,117390.0,0.95666233]
[1752636444120,0.1776001,117400.0,117390.0,1.54090233]
[1752636444616,0.24520469,117400.0,117390.0,1.22476125]
[1752636444818,0.24520469,117400.0,117390.0,1.54090233]
[1752636452819,0.24520469,117400.0,117390.0,1.18010233]
[1752636453019,0.24520469,117400.0,117390.0,1.54090233]
[1752636455823,0.24520469,117400.0,117390.0,1.22476125]
[1752636456022,0.24520469,117400.0,117390.0,1.54090233]
[1752636456324,0.24520469,117400.0,117390.0,1.54082233]
[1752636457317,0.24520469,117400.0,117390.0,0.95666233]
[1752636457518,0.24520469,117400.0,117390.0,1.54082233]
[1752636458316,0.24520469,117400.0,117390.0,1.22468125]
[1752636458520,0.24520469,117400.0,117390.0,0.95666233]
[1752636458921,0.24520469,117400.0,117390.0,1.54078233]
[1752636460220,0.24520469,117400.0,117390.0,0.95666233]
[1752636460822,0.24520469,117400.0,117390.0,1.54078233]
[1752636461218,0.30635106,117400.0,117390.0,1.54078233]
[1752636461624,0.24520469,117400.0,117390.0,1.54078233]
[1752636462324,0.1703499,117400.0,117390.0,1.58337213]
[1752636462524,0.1703499,117400.0,117390.0,1.62596303]
[1752636462926,0.1752099,117400.0,117390.0,1.62596303]
[1752636463727,0.39282009,117410.0,117400.0,0.1703499]
[1752636463929,0.34149527,117410.0,117400.0,0.84729098]
[1752636464129,0.01997,117410.0,117400.0,1.16343206]
[1752636464529,0.01997,117410.0,117400.0,0.84729098]
[1752636465421,0.01997,117410.0,117400.0,0.85029098]
[1752636467328,0.1903054,117410.0,117400.0,0.87569097]
[1752636467529,0.1951654,117410.0,117400.0,0.87569097]
[1752636468827,0.1951654,117410.0,117400.0,0.85029098]
[1752636469134,0.25650717,117410.0,117400.0,0.85029098]
[1752636469332,0.25164717,117410.0,117400.0,0.85029098]
[1752636469731,0.1903054,117410.0,117400.0,0.85029098]
[1752636471939,0.1903054,117410.0,117400.0,0.5341499]
[1752636472137,0.1903054,117410.0,117400.0,0.85029098]
[1752636472338,0.01997,117410.0,117400.0,0.85029098]
[1752636472534,0.01997,117410.0,117400.0,0.87567845]
[1752636472745,0.01997,117410.0,117400.0,0.87567693]
[1752636473539,0.01997,117410.0,117400.0,1.19181801]
[1752636474038,0.01997,117410.0,117400.0,1.16643206]
[1752636474538,0.01997,117410.0,117400.0,1.33678406]
[1752636474738,0.01997,117410.0,117400.0,1.36216098]
[1752636474943,0.01997,117410.0,117400.0,1.58678406]
[1752636475340,0.06134177,117440.0,117430.0,0.1703063]
[1752636475533,0.2200076,117450.0,117440.0,0.1702918]
[1752636475842,0.00486,117450.0,117440.0,0.84723288]
[1752636476138,0.06610375,117450.0,117440.0,0.91373967]
[1752636476638,0.00486,117450.0,117440.0,0.91373967]
[1752636477239,0.00686,117450.0,117440.0,0.91373967]
[1752636477436,0.00686,117450.0,117440.0,0.92227631]
[1752636477639,0.00686,117450.0,117440.0,0.91373967]
[1752636478836,0.00586,117450.0,117440.0,0.91373967]
[1752636480740,0.00586,117450.0,117440.0,0.92214771]
[1752636481336,0.00586,117450.0,117440.0,0.91373967]
[1752636482140,0.1761374,117450.0,117440.0,0.91373967]
[1752636484033,0.1761374,117450.0,117440.0,0.59759859]
[1752636484231,0.1761374,117450.0,117440.0,0.91373967]
[1752636487840,0.00586,117450.0,117440.0,0.91373967]
[1752636488041,0.001,117450.0,117440.0,1.24864453]
[1752636496646,0.001,117450.0,117440.0,0.93250345]
[1752636497758,0.001,117450.0,117440.0,1.24864453]
[1752636509863,0.06224375,117450.0,117440.0,1.24864453]
[1752636513366,0.06224375,117450.0,117440.0,1.60944453]
[1752636515464,0.06718375,117450.0,117440.0,1.60944453]
[1752636516676,0.06718375,117450.0,117440.0,0.88784453]
[1752636516864,0.06718375,117450.0,117440.0,1.60944453]
[1752636518773,0.06224375,117450.0,117440.0,1.60944453]
[1752636518968,0.06224375,117450.0,117440.0,1.68804306]
[1752636519874,0.001,117450.0,117440.0,1.71354589]
[1752636520979,0.06618375,117460.0,117450.0,0.1702775]
[1752636521171,0.06618375,117460.0,117450.0,1.58831796]
[1752636521878,0.23644675,117460.0,117450.0,1.58831796]
[1752636522079,0.23991675,117460.0,117450.0,1.58831796]
[1752636522278,0.23991675,117460.0,117450.0,1.35135773]
[1752636522978,0.23991675,117460.0,117450.0,1.43037166]
[1752636524479,0.06965375,117460.0,117450.0,1.43037166]
[1752636525876,0.06718375,117460.0,117450.0,1.43037166]
[1752636526076,0.06224375,117460.0,117450.0,1.43037166]
[1752636527880,0.06718375,117460.0,117450.0,1.43037166]
[1752636528480,0.23991665,117460.0,117450.0,1.43037166]
[1752636530281,0.06224375,117460.0,117450.0,1.43037166]
[1752636530485,0.02829555,117470.0,117460.0,0.1702629]
[1752636530686,0.02829555,117470.0,117460.0,0.86582621]
[1752636531685,0.03029555,117470.0,117460.0,0.86582621]
[1752636532984,0.11215578,117500.0,117490.0,0.1702194]
[1752636533186,0.00494,117500.0,117490.0,1.80986915]
[1752636534288,0.32735818,117520.0,117510.0,0.1701904]
[1752636534481,0.28481388,117520.0,117510.0,1.06932456]
[1752636534687,0.29322308,117520.0,117510.0,1.06932456]
[1752636534888,0.12304718,117520.0,117510.0,1.43012456]
[1752636535089,0.28480168,117520.0,117510.0,1.43012456]
[1752636535289,0.18601754,117520.0,117510.0,1.43012456]
[1752636535789,0.1775859,117520.0,117510.0,1.44935159]
[1752636537292,0.1775859,117520.0,117510.0,1.45035159]
[1752636538092,0.1775859,117520.0,117510.0,1.51716684]
[1752636538694,0.18628645,117520.0,117510.0,1.51716684]
[1752636541995,0.26265406,117520.0,117510.0,1.51716684]
[1752636543098,0.93942822,117520.0,117510.0,0.02022703]
[1752636543397,1.03325261,117520.0,117510.0,0.02022703]
[1752636543599,1.67559438,117520.0,117510.0,0.02022703]
[1752636543899,1.35962022,117520.0,117510.0,0.02022703]
[1752636544301,1.10962022,117520.0,117510.0,0.02022703]
[1752636544689,1.35962022,117520.0,117510.0,0.02022703]
[1752636544895,1.28325261,117520.0,117510.0,0.02022703]
[1752636545296,1.03325261,117520.0,117510.0,0.02022703]
[1752636545603,1.10958536,117520.0,117510.0,0.02022703]
[1752636546595,1.11058536,117520.0,117510.0,0.01922703]
[1752636549203,0.2627159,117510.0,117500.0,0.57126466]
[1752636549407,0.6660667,117510.0,117500.0,0.57126466]
[1752636550002,0.74239945,117510.0,117500.0,0.57126466]
[1752636550606,0.170205,117500.0,117490.0,0.59020605]
[1752636550805,0.177535,117500.0,117490.0,0.63276025]
[1752636551296,0.170205,117500.0,117490.0,0.63276025]
[1752636551502,0.175145,117500.0,117490.0,0.99356025]
[1752636551701,0.176145,117500.0,117490.0,0.95100605]
[1752636555400,0.25247775,117500.0,117490.0,0.95100605]
[1752636556205,0.25486775,117500.0,117490.0,0.95100605]
[1752636556805,0.178535,117500.0,117490.0,0.95100605]
[1752636557406,0.25486775,117500.0,117490.0,0.95100605]
[1752636560006,0.178535,117500.0,117490.0,0.95100605]
[1752636562309,0.178535,117500.0,117490.0,0.63503189]
[1752636562506,0.178535,117500.0,117490.0,0.95100605]
[1752636564108,0.176145,117500.0,117490.0,0.93209046]
[1752636564306,0.00594,117500.0,117490.0,0.93209046]
[1752636564608,0.001,117500.0,117490.0,0.93209046]
[1752636566205,0.07633275,117510.0,117500.0,0.170205]
[1752636566400,0.07633275,117510.0,117500.0,1.42973916]
[1752636566805,0.33629415,117520.0,117510.0,0.1701905]
[1752636567013,0.33629415,117520.0,117510.0,0.84696466]
[1752636567014,0.25120115,117520.0,117510.0,0.84696466]
[1752636567612,0.24652115,117520.0,117510.0,0.84696466]
[1752636567909,0.07633275,117520.0,117510.0,0.84696466]
[1752636568219,0.37881565,117530.0,117520.0,0.170176]
[1752636568410,0.29372895,117530.0,117520.0,1.42971016]
[1752636569408,0.29372895,117530.0,117520.0,1.43071016]
[1752636570309,0.29372895,117530.0,117520.0,1.06991016]
[1752636570918,0.29611895,117530.0,117520.0,1.06991016]
[1752636574418,0.2197862,117530.0,117520.0,1.06991016]
[1752636575017,0.2197862,117530.0,117520.0,0.753936]
[1752636575814,0.28093597,117530.0,117520.0,0.753936]
[1752636577317,0.64173597,117530.0,117520.0,1.06991016]
[1752636577515,0.5805862,117530.0,117520.0,1.06991016]
[1752636577916,0.64172918,117530.0,117520.0,1.06991016]
[1752636578218,0.5805862,117530.0,117520.0,1.06991016]
[1752636578418,0.64172837,117530.0,117520.0,1.06991016]
[1752636578918,0.64172837,117530.0,117520.0,0.171176]
[1752636579118,0.89656036,117530.0,117520.0,0.001]
[1752636579415,0.172595,117500.0,117490.0,0.512262]
[1752636579609,0.49324916,117500.0,117490.0,0.1718091]
[1752636579813,0.49324916,117500.0,117490.0,0.58424]
[1752636580219,0.49324916,117500.0,117490.0,0.7544595]
[1752636580520,0.25371613,117500.0,117490.0,0.7554595]
[1752636580721,0.177275,117500.0,117490.0,0.7554595]
[1752636581517,0.25371613,117500.0,117490.0,0.7554595]
[1752636584317,0.23841512,117500.0,117490.0,0.7554595]
[1752636585222,0.23841512,117500.0,117490.0,0.7544595]
[1752636585421,0.23841512,117500.0,117490.0,0.58424]
[1752636585621,0.23841512,117500.0,117490.0,0.7544595]
[1752636586924,0.23841512,117500.0,117490.0,0.58424]
[1752636587324,0.23841512,117500.0,117490.0,0.7544594]
[1752636591527,0.23841512,117500.0,117490.0,0.58424]
[1752636592226,0.23841512,117500.0,117490.0,0.0016]
[1752636592923,0.23841512,117500.0,117490.0,0.1718194]
[1752636594033,0.177275,117500.0,117490.0,0.1718194]
[1752636598638,0.177275,117500.0,117490.0,0.0016]
[1752636599744,0.538075,117500.0,117490.0,0.0016]
[1752636600143,0.1771794,117490.0,117480.0,0.7545015]
[1752636600439,0.1771939,117480.0,117470.0,0.7970788]
[1752636600636,0.61436701,117480.0,117470.0,0.1718484]
[1752636601751,0.5379939,117480.0,117470.0,0.1718484]
[1752636602044,0.61436701,117480.0,117470.0,0.1718484]
[1752636603149,0.62302789,117480.0,117470.0,0.1718484]
[1752636604350,0.93900205,117480.0,117470.0,0.1718484]
[1752636604552,0.62302789,117480.0,117470.0,0.1718484]
[1752636609257,0.54665478,117480.0,117470.0,0.1718484]
[1752636609456,0.26236477,117480.0,117470.0,0.1718484]
[1752636609851,0.3235713,117480.0,117470.0,0.1718484]
[1752636610051,0.24706131,117480.0,117470.0,0.1718484]
[1752636611557,0.18585478,117480.0,117470.0,0.1718484]
[1752636612050,0.76853478,117480.0,117470.0,0.1718484]
[1752636612257,0.76853478,117480.0,117470.0,0.48782256]
[1752636613954,0.18585478,117480.0,117470.0,0.48782256]
[1752636617661,0.1771939,117480.0,117470.0,0.48882256]
[1752636617862,0.23597751,117480.0,117470.0,0.84962256]
[1752636619266,0.23697751,117480.0,117470.0,0.84962256]
[1752636620266,0.23244751,117480.0,117470.0,0.84962256]
[1752636620960,0.06221361,117480.0,117470.0,0.84962256]
[1752636622365,0.06121361,117480.0,117470.0,0.84962256]
[1752636622966,0.175123,117490.0,117480.0,0.171834]
[1752636623159,0.175123,117490.0,117480.0,1.43224816]
[1752636623160,0.23634844,117490.0,117480.0,1.43224816]
[1752636623465,0.175123,117490.0,117480.0,1.43224816]
[1752636623763,0.23634948,117490.0,117480.0,1.43224816]
[1752636623965,0.175123,117490.0,117480.0,1.43224816]
[1752636624164,0.170223,117490.0,117480.0,1.43224816]
[1752636624366,0.34778232,117500.0,117490.0,0.1728195]
[1752636624566,0.34778232,117500.0,117490.0,0.48879366]
[1752636625468,0.33915599,117500.0,117490.0,0.48879366]
[1752636625669,0.33673599,117500.0,117490.0,0.48879366]
[1752636626266,0.29418159,117500.0,117490.0,0.84959366]
[1752636627067,0.33671189,117510.0,117500.0,0.172805]
[1752636627268,0.33673653,117510.0,117500.0,1.07161916]
[1752636627662,0.33673653,117510.0,117500.0,1.43241916]
[1752636628060,0.0049,117510.0,117500.0,1.43241916]
[1752636628269,0.61242263,117520.0,117510.0,0.1717905]
[1752636628466,0.61242263,117520.0,117510.0,0.48776466]
[1752636628867,0.61242263,117520.0,117510.0,0.48876466]
[1752636630171,0.25162263,117520.0,117510.0,0.48876466]
[1752636630373,0.175088,117520.0,117510.0,0.48876466]
[1752636630869,0.176088,117520.0,117510.0,0.48876466]
[1752636631063,0.06213614,117520.0,117510.0,1.16553882]
[1752636631567,0.001,117520.0,117510.0,0.91921161]
[1752636632167,0.001,117520.0,117510.0,0.84956466]
[1752636632374,0.32128004,117530.0,117520.0,0.1701761]
[1752636632566,0.32128004,117530.0,117520.0,1.43779026]
[1752636632966,0.32370004,117530.0,117520.0,1.43779026]
[1752636634672,0.32470004,117530.0,117520.0,1.43779026]
[1752636636270,0.2635639,117530.0,117520.0,1.43779026]
[1752636636973,0.32470004,117530.0,117520.0,1.43779026]
[1752636639075,0.32470004,117530.0,117520.0,1.1218161]
[1752636639264,0.32470004,117530.0,117520.0,0.1717761]
[1752636639469,0.6406742,117530.0,117520.0,0.7594961]
[1752636639669,0.6406742,117530.0,117520.0,0.7595361]
[1752636639866,0.6406742,117530.0,117520.0,0.759536]
[1752636640173,0.172656,117520.0,117510.0,0.2994138]
[1752636640475,0.85433016,117520.0,117510.0,0.8021217]
[1752636642975,0.85433016,117520.0,117510.0,0.7595772]
[1752636643279,0.85433016,117520.0,117510.0,0.7579772]
[1752636643580,0.85433016,117520.0,117510.0,0.1701772]
[1752636643979,0.85433016,117520.0,117510.0,0.1721772]
[1752636644182,1.44197016,117520.0,117510.0,0.1721772]
[1752636644570,1.44197016,117520.0,117510.0,0.1701772]
[1752636644769,0.177556,117520.0,117510.0,0.48775136]
[1752636646084,0.177556,117520.0,117510.0,0.1717772]
[1752636646284,0.177556,117520.0,117510.0,0.48775136]
[1752636646873,0.23854567,117520.0,117510.0,0.48775136]
[1752636647488,0.23854567,117520.0,117510.0,0.1717772]
[1752636647783,0.23854567,117520.0,117510.0,0.48775136]
[1752636649684,0.23854567,117520.0,117510.0,0.1717772]
[1752636649888,0.25409063,117520.0,117510.0,0.48775136]
[1752636650291,0.25409063,117520.0,117510.0,0.1717772]
[1752636650491,0.25409063,117520.0,117510.0,0.48775136]
[1752636652192,0.25409063,117520.0,117510.0,0.1717772]
[1752636652586,0.177556,117520.0,117510.0,0.48775136]
[1752636653286,0.25398382,117520.0,117510.0,0.48775136]
[1752636653895,0.177556,117520.0,117510.0,0.48775136]
[1752636654702,0.23872688,117520.0,117510.0,0.48775136]
[1752636654903,0.23872688,117520.0,117510.0,0.84855136]
[1752636655599,0.23872688,117520.0,117510.0,0.48775136]
[1752636656403,0.23872688,117520.0,117510.0,0.84855136]
[1752636657797,0.23872688,117520.0,117510.0,0.48775136]
[1752636657998,0.177556,117520.0,117510.0,0.84855136]
[1752636658305,0.177556,117520.0,117510.0,0.84955136]
[1752636658804,0.177556,117520.0,117510.0,0.84855136]
[1752636661407,0.177556,117520.0,117510.0,0.48775136]
[1752636661706,0.538356,117520.0,117510.0,0.48775136]
[1752636661894,0.61478382,117520.0,117510.0,0.48775136]
[1752636662197,0.25398382,117520.0,117510.0,0.48775136]
[1752636662599,0.25398382,117520.0,117510.0,0.1717772]
[1752636665104,0.25398382,117520.0,117510.0,0.48775136]
[1752636667909,0.177556,117520.0,117510.0,0.48775136]
[1752636669408,0.00738,117520.0,117510.0,0.48875136]
[1752636669707,0.25391002,117530.0,117520.0,0.1727761]
[1752636669913,0.00732,117530.0,117520.0,0.84955026]
[1752636670107,0.25390942,117530.0,117520.0,1.07711026]
[1752636671113,0.00732,117530.0,117520.0,1.07711026]
[1752636671314,0.08392164,117530.0,117520.0,1.07711026]
[1752636671514,0.00732,117530.0,117520.0,0.7611361]
[1752636671814,0.1774816,117530.0,117520.0,1.07711026]
[1752636672313,0.25407967,117530.0,117520.0,1.07711026]
[1752636672711,0.1774816,117530.0,117520.0,1.07711026]
[1752636672911,0.25407638,117530.0,117520.0,1.07711026]
[1752636673412,0.1774816,117530.0,117520.0,1.07711026]
[1752636677314,0.46766585,117540.0,117520.0,1.41092241]
[1752636677512,0.18344704,117540.0,117530.0,0.84953576]
[1752636677707,0.08115119,117550.0,117540.0,0.1727471]
[1752636677905,0.07658119,117550.0,117540.0,1.07628126]
[1752636678512,0.61206939,117560.0,117550.0,0.1717326]
[1752636678808,0.61206939,117560.0,117550.0,0.48870676]
[1752636679614,0.61306939,117560.0,117550.0,0.48870676]
[1752636680512,0.44529119,117560.0,117550.0,0.48870676]
[1752636680816,0.44295119,117560.0,117550.0,0.48870676]
[1752636681719,0.61540939,117560.0,117550.0,0.48870676]
[1752636681919,0.61540939,117560.0,117550.0,1.07694676]
[1752636682516,0.5388282,117560.0,117550.0,1.07694676]
[1752636684816,0.36871,117560.0,117550.0,1.07694676]
[1752636685721,0.36637,117560.0,117550.0,1.07694676]
[1752636686723,0.00557,117560.0,117550.0,1.43774676]
[1752636686926,0.001,117560.0,117550.0,1.43774676]
[1752636687418,0.001,117560.0,117550.0,1.75372092]
[1752636687725,0.001,117560.0,117550.0,1.43774676]
[1752636688824,0.1770138,117570.0,117560.0,0.1727182]
[1752636689130,0.00691,117570.0,117560.0,0.84949236]
[1752636690020,0.00791,117570.0,117560.0,0.84949236]
[1752636690623,0.1780138,117570.0,117560.0,0.84949236]
[1752636690921,0.00791,117570.0,117560.0,0.84949236]
[1752636691424,0.1780138,117570.0,117560.0,0.84949236]
[1752636692224,0.5388138,117570.0,117560.0,0.48769236]
[1752636692823,0.1770282,117560.0,117550.0,0.8448233]
[1752636693023,0.85380236,117560.0,117550.0,0.7597619]
[1752636693226,0.5378282,117560.0,117550.0,0.7597619]
[1752636694123,0.61440939,117560.0,117550.0,0.1717219]
[1752636694326,0.61440939,117560.0,117550.0,0.7599219]
[1752636694827,0.5378282,117560.0,117550.0,0.7599219]
[1752636695423,0.5378282,117560.0,117550.0,0.1717327]
[1752636695623,0.5378282,117560.0,117550.0,0.58968]
[1752636695921,0.1770427,117550.0,117540.0,0.0016]
[1752636696129,0.1770572,117540.0,117530.0,0.6601779]
[1752636696325,0.18564416,117540.0,117530.0,1.2482179]
[1752636696629,0.18564416,117540.0,117530.0,1.56419206]
[1752636698029,0.54644416,117540.0,117530.0,1.20339206]
[1752636698320,0.93899951,117540.0,117530.0,0.2126994]
[1752636698525,0.62302535,117540.0,117530.0,0.8006994]
[1752636699220,0.54644416,117540.0,117530.0,0.8006994]
[1752636700125,0.62276629,117540.0,117530.0,0.8006994]
[1752636700426,0.54644416,117540.0,117530.0,0.8006994]
[1752636700823,0.54644416,117540.0,117530.0,0.8022994]
[1752636702227,0.5378572,117540.0,117530.0,1.11827356]
[1752636704732,0.1770572,117540.0,117530.0,1.11827356]
[1752636710333,0.1770572,117540.0,117530.0,0.8022994]
[1752636710531,0.1770572,117540.0,117530.0,1.11827356]
[1752636710734,0.1770572,117540.0,117530.0,0.8022994]
[1752636710933,0.1770572,117540.0,117530.0,1.11827356]
[1752636713344,0.1770572,117540.0,117530.0,1.11927356]
[1752636718437,0.00691,117540.0,117530.0,1.11927356]
[1752636718738,0.00494,117550.0,117540.0,0.1727472]
[1752636718944,0.08126213,117550.0,117540.0,0.84952136]
[1752636720039,0.00594,117550.0,117540.0,0.84952136]
[1752636722746,0.07732213,117550.0,117540.0,0.84952136]
[1752636723149,0.07632213,117550.0,117540.0,0.84952136]
[1752636723449,0.07632213,117560.0,117550.0,0.1701327]
[1752636723646,0.07632213,117560.0,117550.0,1.43622686]
[1752636724747,0.07732213,117560.0,117550.0,1.43622686]
[1752636725450,0.001,117560.0,117550.0,1.43622686]
[1752636732949,0.001,117560.0,117550.0,1.75220102]
[1752636733159,0.00494,117570.0,117560.0,0.1701182]
[1752636733458,0.00494,117570.0,117560.0,0.50522705]
[1752636734357,0.00594,117570.0,117560.0,0.50522705]
[1752636734757,0.1725927,117550.0,117540.0,0.63459887]
[1752636734960,0.1775927,117550.0,117540.0,1.22283887]
[1752636735658,0.1775927,117550.0,117540.0,1.53881303]
[1752636735859,0.1775927,117550.0,117540.0,1.22283887]
[1752636737355,0.25391483,117550.0,117540.0,1.2042444]
[1752636737754,0.25391483,117550.0,117540.0,1.52021856]
[1752636738163,0.1775927,117550.0,117540.0,1.52021856]
[1752636738363,0.25391483,117550.0,117540.0,1.52021856]
[1752636738664,0.08378213,117550.0,117540.0,1.53904577]
[1752636738961,0.73984903,117560.0,117550.0,0.1701327]
[1752636739161,0.61225093,117560.0,117550.0,0.48610686]
[1752636739463,0.5359288,117560.0,117550.0,0.48610686]
[1752636740058,0.28445465,117560.0,117550.0,0.48610686]
[1752636743365,0.28199465,117560.0,117550.0,0.48610686]
[1752636743866,0.1751288,117560.0,117550.0,0.48610686]
[1752636744165,0.25154979,117560.0,117550.0,0.48610686]
[1752636744461,0.25400979,117560.0,117550.0,0.48610686]
[1752636744667,0.28445465,117560.0,117550.0,0.48610686]
[1752636745968,0.11186585,117560.0,117550.0,0.84690686]
[1752636746760,0.28198405,117560.0,117550.0,0.84690686]
[1752636748362,0.28444405,117560.0,117550.0,0.84690686]
[1752636749570,0.11186585,117560.0,117550.0,0.84690686]
[1752636750568,0.005,117560.0,117550.0,0.84690686]
[1752636750768,0.1751182,117560.0,117550.0,1.43434686]
[1752636752574,0.005,117560.0,117550.0,1.43434686]
[1752636752777,0.29162343,117570.0,117560.0,0.1701181]
[1752636752974,0.29662343,117570.0,117560.0,0.48609226]
[1752636753874,0.29662343,117570.0,117560.0,0.49455351]
[1752636754075,0.29662343,117570.0,117560.0,0.48609226]
[1752636756476,0.48854728,117570.0,117560.0,0.48609226]
[1752636756775,0.41202665,117570.0,117560.0,1.07297226]
[1752636756976,0.41202665,117570.0,117560.0,0.7569981]
[1752636757274,0.1775781,117560.0,117550.0,0.2551828]
[1752636757475,0.1775781,117560.0,117550.0,0.8420228]
[1752636759773,0.1775781,117560.0,117550.0,1.15799696]
[1752636763787,0.1775781,117560.0,117550.0,0.8420228]
[1752636763984,0.1775781,117560.0,117550.0,1.15799696]
[1752636765089,0.25411476,117560.0,117550.0,1.15799696]
[1752636766191,0.1775781,117560.0,117550.0,1.15799696]
[1752636766391,0.28444395,117560.0,117550.0,1.15799696]
[1752636767389,0.28444395,117560.0,117550.0,0.8420228]
[1752636767595,0.28444395,117560.0,117550.0,0.7988922]